[Event "Titled Tuesday Blitz November 07 Early 2023"]
[White "Harsh Suresh"]
[Black "Shuvalova, Polina"]
[WhiteFideId "45018464"]
[BlackFideId "24171760"]
[WhiteElo "2942"]
[BlackElo "2668"]
[Result "1-0"]
[Round "3"]
[TimeControl "180+1"]
[Date "2023.11.07"]
[WhiteClock "0:00:08"]
[BlackClock "0:00:00"]
[Board "58"]

1. e4 {[%clk 0:03:00]}  c6 {[%clk 0:02:59]} 2. d4 {[%clk 0:02:56]}  d5 {[%clk 0:03:00]} 3. exd5 {[%clk 0:02:57]}  cxd5 {[%clk 0:03:00]} 4. Bd3 {[%clk 0:02:57]}  Nc6 {[%clk 0:03:00]} 5. c3 {[%clk 0:02:57]}  Nf6 {[%clk 0:03:00]} 6. Bf4 {[%clk 0:02:57]}  Bg4 {[%clk 0:02:57]} 7. Qb3 {[%clk 0:02:58]}  Qd7 {[%clk 0:02:55]} 8. Nd2 {[%clk 0:02:57]}  e6 {[%clk 0:02:56]} 9. Ngf3 {[%clk 0:02:58]}  Bd6 {[%clk 0:02:56]} 10. Bxd6 {[%clk 0:02:56]}  Qxd6 {[%clk 0:02:56]} 11. O-O {[%clk 0:02:56]}  O-O {[%clk 0:02:56]} 12. Rfe1 {[%clk 0:02:56]}  Qc7 {[%clk 0:02:52]} 13. Ne5 {[%clk 0:02:56]}  Bf5 {[%clk 0:02:45]} 14. Bxf5 {[%clk 0:02:55]}  exf5 {[%clk 0:02:45]} 15. Re2 {[%clk 0:02:45]}  g6 {[%clk 0:02:33]} 16. Rae1 {[%clk 0:02:45]}  Rfe8 {[%clk 0:02:24]} 17. Ndf3 {[%clk 0:02:32]}  Kg7 {[%clk 0:02:00]} 18. Qa3 {[%clk 0:02:29]}  Ne4 {[%clk 0:01:56]} 19. Nxc6 {[%clk 0:02:24]}  bxc6 {[%clk 0:01:52]} 20. Ne5 {[%clk 0:02:25]}  Re6 {[%clk 0:01:43]} 21. Nd3 {[%clk 0:02:10]}  Rae8 {[%clk 0:01:40]} 22. f3 {[%clk 0:02:10]}  Ng5 {[%clk 0:01:28]} 23. Rxe6 {[%clk 0:02:10]}  Rxe6 {[%clk 0:01:26]} 24. Rxe6 {[%clk 0:02:09]}  Nxe6 {[%clk 0:01:27]} 25. Qa6 {[%clk 0:01:54]}  f6 {[%clk 0:01:06]} 26. g3 {[%clk 0:01:38]}  g5 {[%clk 0:01:01]} 27. Nb4 {[%clk 0:01:27]}  Nd8 {[%clk 0:01:00]} 28. Qe2 {[%clk 0:01:23]}  Qd7 {[%clk 0:00:56]} 29. Kf2 {[%clk 0:01:16]}  h5 {[%clk 0:00:55]} 30. Ke1 {[%clk 0:01:07]}  Ne6 {[%clk 0:00:54]} 31. Nd3 {[%clk 0:01:06]}  Qd6 {[%clk 0:00:50]} 32. Qe3 {[%clk 0:00:56]}  Kf7 {[%clk 0:00:47]} 33. Kf2 {[%clk 0:00:52]}  h4 {[%clk 0:00:47]} 34. f4 {[%clk 0:00:49]}  hxg3+ {[%clk 0:00:28]} 35. hxg3 {[%clk 0:00:50]}  g4 {[%clk 0:00:23]} 36. Ke2 {[%clk 0:00:48]}  Qb8 {[%clk 0:00:20]} 37. Kd2 {[%clk 0:00:36]}  Qh8 {[%clk 0:00:19]} 38. Qf2 {[%clk 0:00:30]}  Qh1 {[%clk 0:00:19]} 39. Ne1 {[%clk 0:00:27]}  Qe4 {[%clk 0:00:17]} 40. Nc2 {[%clk 0:00:28]}  Qh1 {[%clk 0:00:13]} 41. Qe1 {[%clk 0:00:26]}  Qg2+ {[%clk 0:00:12]} 42. Kc1 {[%clk 0:00:25]}  Qf3 {[%clk 0:00:11]} 43. Ne3 {[%clk 0:00:25]}  Kg6 {[%clk 0:00:09]} 44. Kd2 {[%clk 0:00:24]}  Ng7 {[%clk 0:00:09]} 45. Nf1 {[%clk 0:00:17]}  Nh5 {[%clk 0:00:06]} 46. Qe8+ {[%clk 0:00:16]}  Kh6 {[%clk 0:00:06]} 47. Qe2 {[%clk 0:00:16]}  Qh1 {[%clk 0:00:03]} 48. Qf2 {[%clk 0:00:14]}  Qe4 {[%clk 0:00:02]} 49. Qe1 {[%clk 0:00:11]}  Qg2+ {[%clk 0:00:02]} 50. Qe2 {[%clk 0:00:11]}  Qh1 {[%clk 0:00:02]} 51. a4 {[%clk 0:00:11]}  Qe4 {[%clk 0:00:02]} 52. Qxe4 {[%clk 0:00:06]}  fxe4 {[%clk 0:00:03]} 53. b3 {[%clk 0:00:06]}  Ng7 {[%clk 0:00:02]} 54. Ne3 {[%clk 0:00:07]}  Kh5 {[%clk 0:00:02]} 55. c4 {[%clk 0:00:07]}  dxc4 {[%clk 0:00:00]} 56. bxc4 {[%clk 0:00:08]} 1-0


[Site "https://www.chess.com"]

[Event "Titled Tuesday Blitz November 07 Early 2023"]
[White "Melkumyan, Hrant"]
[Black "Belov, Alexei"]
[WhiteFideId "13302485"]
[BlackFideId "4128206"]
[WhiteElo "2887"]
[BlackElo "2627"]
[Result "1-0"]
[Round "3"]
[TimeControl "180+1"]
[Date "2023.11.07"]
[WhiteClock "0:00:31"]
[BlackClock "0:00:00"]
[Board "61"]

1. d4 {[%clk 0:03:00]}  d5 {[%clk 0:02:58]} 2. c4 {[%clk 0:03:01]}  e6 {[%clk 0:02:58]} 3. Nc3 {[%clk 0:03:00]}  Be7 {[%clk 0:02:58]} 4. Bf4 {[%clk 0:02:59]}  Nf6 {[%clk 0:02:57]} 5. e3 {[%clk 0:02:59]}  O-O {[%clk 0:02:57]} 6. Rc1 {[%clk 0:02:59]}  a6 {[%clk 0:02:55]} 7. cxd5 {[%clk 0:02:53]}  exd5 {[%clk 0:02:54]} 8. Bd3 {[%clk 0:02:53]}  c6 {[%clk 0:02:54]} 9. Nge2 {[%clk 0:02:53]}  Nbd7 {[%clk 0:02:49]} 10. Qc2 {[%clk 0:02:52]}  Re8 {[%clk 0:02:49]} 11. O-O {[%clk 0:02:51]}  Nf8 {[%clk 0:02:49]} 12. h3 {[%clk 0:02:46]}  Ng6 {[%clk 0:02:49]} 13. Bg3 {[%clk 0:02:45]}  Bd6 {[%clk 0:02:49]} 14. a3 {[%clk 0:02:43]}  a5 {[%clk 0:02:28]} 15. Rb1 {[%clk 0:02:40]}  Qe7 {[%clk 0:02:02]} 16. Rfc1 {[%clk 0:02:37]}  Bxg3 {[%clk 0:01:55]} 17. Nxg3 {[%clk 0:02:37]}  Nh4 {[%clk 0:01:55]} 18. b3 {[%clk 0:02:31]}  Qxa3 {[%clk 0:01:47]} 19. Na4 {[%clk 0:02:14]}  Qd6 {[%clk 0:01:37]} 20. Nb6 {[%clk 0:02:14]}  Rb8 {[%clk 0:01:26]} 21. Qc5 {[%clk 0:02:14]}  Qe6 {[%clk 0:01:20]} 22. Bf1 {[%clk 0:02:06]}  Ne4 {[%clk 0:01:14]} 23. Nxe4 {[%clk 0:01:57]}  Qxe4 {[%clk 0:01:14]} 24. Qd6 {[%clk 0:01:29]}  Bxh3 {[%clk 0:00:58]} 25. gxh3 {[%clk 0:01:29]}  Nf3+ {[%clk 0:00:58]} 26. Kh1 {[%clk 0:01:30]}  Nh4+ {[%clk 0:00:55]} 27. Kh2 {[%clk 0:01:30]}  Nf3+ {[%clk 0:00:47]} 28. Kg3 {[%clk 0:01:30]}  Nd2 {[%clk 0:00:27]} 29. Qf4 {[%clk 0:01:19]}  Qg6+ {[%clk 0:00:27]} 30. Qg4 {[%clk 0:01:19]}  Qd6+ {[%clk 0:00:26]} 31. Kg2 {[%clk 0:01:15]}  Re6 {[%clk 0:00:17]} 32. Bd3 {[%clk 0:01:13]}  Nxb1 {[%clk 0:00:16]} 33. Rxb1 {[%clk 0:01:14]}  Qb4 {[%clk 0:00:16]} 34. Nd7 {[%clk 0:01:12]}  Rbe8 {[%clk 0:00:14]} 35. Nc5 {[%clk 0:01:11]}  Rf6 {[%clk 0:00:13]} 36. Nd7 {[%clk 0:01:03]}  Rfe6 {[%clk 0:00:10]} 37. Ne5 {[%clk 0:01:03]}  g6 {[%clk 0:00:10]} 38. Qf4 {[%clk 0:00:58]}  Qe7 {[%clk 0:00:08]} 39. Kh2 {[%clk 0:00:54]}  Rf6 {[%clk 0:00:08]} 40. Qg3 {[%clk 0:00:53]}  Kh8 {[%clk 0:00:07]} 41. Ng4 {[%clk 0:00:52]}  Re6 {[%clk 0:00:06]} 42. Ne5 {[%clk 0:00:52]}  Rf6 {[%clk 0:00:06]} 43. Ra1 {[%clk 0:00:52]}  Qb4 {[%clk 0:00:06]} 44. Qh4 {[%clk 0:00:50]}  Kg7 {[%clk 0:00:05]} 45. Ng4 {[%clk 0:00:49]}  Rfe6 {[%clk 0:00:04]} 46. Qh6+ {[%clk 0:00:49]}  Kg8 {[%clk 0:00:04]} 47. Qf4 {[%clk 0:00:50]}  Kg7 {[%clk 0:00:04]} 48. Bf1 {[%clk 0:00:46]}  Qd2 {[%clk 0:00:04]} 49. Bg2 {[%clk 0:00:44]}  h5 {[%clk 0:00:03]} 50. Qh6+ {[%clk 0:00:30]}  Kg8 {[%clk 0:00:03]} 51. Ne5 {[%clk 0:00:31]}  Qxf2 {[%clk 0:00:00]} 52. Rf1 {[%clk 0:00:31]} 1-0


[Site "https://www.chess.com"]

[Event "Titled Tuesday Blitz November 07 Early 2023"]
[White "Ambartsumova, Karina"]
[Black "Alexandre, Anne Shopie Elizabeth"]
[WhiteFideId "4166299"]
[BlackFideId "11902418"]
[WhiteElo "2612"]
[BlackElo "2864"]
[Result "0-1"]
[Round "3"]
[TimeControl "180+1"]
[Date "2023.11.07"]
[WhiteClock "0:00:04"]
[BlackClock "0:00:07"]
[Board "62"]

1. d4 {[%clk 0:03:00]}  Nf6 {[%clk 0:02:58]} 2. c4 {[%clk 0:03:00]}  g6 {[%clk 0:02:59]} 3. g3 {[%clk 0:03:00]}  Bg7 {[%clk 0:02:58]} 4. Bg2 {[%clk 0:03:00]}  O-O {[%clk 0:02:57]} 5. Nc3 {[%clk 0:03:00]}  c5 {[%clk 0:02:56]} 6. Nf3 {[%clk 0:02:51]}  Qa5 {[%clk 0:02:41]} 7. O-O {[%clk 0:02:44]}  cxd4 {[%clk 0:02:39]} 8. Nxd4 {[%clk 0:02:45]}  Nc6 {[%clk 0:02:39]} 9. Nf3 {[%clk 0:02:34]}  d6 {[%clk 0:02:37]} 10. Nd5 {[%clk 0:02:22]}  Nxd5 {[%clk 0:02:35]} 11. cxd5 {[%clk 0:02:23]}  Nb4 {[%clk 0:02:33]} 12. e4 {[%clk 0:02:17]}  Bd7 {[%clk 0:02:17]} 13. Bd2 {[%clk 0:02:08]}  Qb6 {[%clk 0:02:17]} 14. a3 {[%clk 0:01:52]}  Nd3 {[%clk 0:02:04]} 15. b4 {[%clk 0:01:32]}  Nb2 {[%clk 0:01:43]} 16. Qb3 {[%clk 0:01:22]}  Ba4 {[%clk 0:01:40]} 17. Qe3 {[%clk 0:01:19]}  Bb5 {[%clk 0:01:24]} 18. Rfb1 {[%clk 0:00:58]}  Qxe3 {[%clk 0:01:19]} 19. Bxe3 {[%clk 0:00:57]}  Bd3 {[%clk 0:01:19]} 20. Re1 {[%clk 0:00:54]}  Bxe4 {[%clk 0:01:08]} 21. Bd4 {[%clk 0:00:54]}  Bxf3 {[%clk 0:01:06]} 22. Bxg7 {[%clk 0:00:54]}  Kxg7 {[%clk 0:00:59]} 23. Bxf3 {[%clk 0:00:54]}  Kf6 {[%clk 0:00:59]} 24. Re3 {[%clk 0:00:48]}  Rac8 {[%clk 0:00:52]} 25. Rae1 {[%clk 0:00:47]}  Rc7 {[%clk 0:00:52]} 26. Be2 {[%clk 0:00:41]}  Na4 {[%clk 0:00:48]} 27. Bf1 {[%clk 0:00:36]}  Nb6 {[%clk 0:00:44]} 28. Bg2 {[%clk 0:00:33]}  h5 {[%clk 0:00:42]} 29. h4 {[%clk 0:00:32]}  Re8 {[%clk 0:00:39]} 30. Bf3 {[%clk 0:00:29]}  Nc4 {[%clk 0:00:38]} 31. Rc3 {[%clk 0:00:23]}  Rec8 {[%clk 0:00:35]} 32. Rec1 {[%clk 0:00:22]}  b5 {[%clk 0:00:34]} 33. Be2 {[%clk 0:00:22]}  Ke5 {[%clk 0:00:33]} 34. Bf3 {[%clk 0:00:20]}  a6 {[%clk 0:00:26]} 35. Kg2 {[%clk 0:00:20]}  Kf5 {[%clk 0:00:24]} 36. Re1 {[%clk 0:00:17]}  Kf6 {[%clk 0:00:24]} 37. Bd1 {[%clk 0:00:15]}  Ne5 {[%clk 0:00:18]} 38. Rce3 {[%clk 0:00:16]}  Rc3 {[%clk 0:00:17]} 39. f4 {[%clk 0:00:15]}  Rxe3 {[%clk 0:00:16]} 40. Rxe3 {[%clk 0:00:15]}  Nc4 {[%clk 0:00:16]} 41. Rc3 {[%clk 0:00:15]}  Nb6 {[%clk 0:00:15]} 42. Rc6 {[%clk 0:00:14]}  Rxc6 {[%clk 0:00:12]} 43. dxc6 {[%clk 0:00:14]}  d5 {[%clk 0:00:10]} 44. g4 {[%clk 0:00:13]}  hxg4 {[%clk 0:00:08]} 45. Bxg4 {[%clk 0:00:13]}  e6 {[%clk 0:00:09]} 46. h5 {[%clk 0:00:14]}  gxh5 {[%clk 0:00:08]} 47. Bxh5 {[%clk 0:00:14]}  Ke7 {[%clk 0:00:09]} 48. Kf2 {[%clk 0:00:14]}  f6 {[%clk 0:00:08]} 49. c7 {[%clk 0:00:09]}  Kd7 {[%clk 0:00:08]} 50. Bf7 {[%clk 0:00:09]}  e5 {[%clk 0:00:08]} 51. fxe5 {[%clk 0:00:08]}  fxe5 {[%clk 0:00:09]} 52. Ke3 {[%clk 0:00:05]}  Kxc7 {[%clk 0:00:09]} 53. Kd3 {[%clk 0:00:05]}  Kd6 {[%clk 0:00:10]} 54. Bg6 {[%clk 0:00:05]}  Nc4 {[%clk 0:00:07]} 55. Bf5 {[%clk 0:00:06]}  e4+ {[%clk 0:00:06]} 56. Kd4 {[%clk 0:00:06]}  Ne5 {[%clk 0:00:07]} 57. Bc8 {[%clk 0:00:05]}  Nc6+ {[%clk 0:00:08]} 58. Ke3 {[%clk 0:00:05]}  Nb8 {[%clk 0:00:08]} 59. Bb7 {[%clk 0:00:06]}  Ke5 {[%clk 0:00:06]} 60. a4 {[%clk 0:00:05]}  d4+ {[%clk 0:00:07]} 61. Ke2 {[%clk 0:00:04]}  bxa4 {[%clk 0:00:07]} 0-1


[Site "https://www.chess.com"]

[Event "Titled Tuesday Blitz November 07 Early 2023"]
[White "Molina, Roberto Junio Brito"]
[Black "Shapiro, Viktor"]
[WhiteFideId "2109450"]
[BlackFideId "4175700"]
[WhiteElo "2806"]
[BlackElo "2578"]
[Result "0-1"]
[Round "3"]
[TimeControl "180+1"]
[Date "2023.11.07"]
[WhiteClock "0:00:00"]
[BlackClock "0:00:22"]
[Board "65"]

1. d4 {[%clk 0:03:00]}  Nf6 {[%clk 0:02:43]} 2. Nf3 {[%clk 0:02:57]}  e6 {[%clk 0:02:37]} 3. e3 {[%clk 0:02:58]}  d5 {[%clk 0:02:35]} 4. Bd3 {[%clk 0:02:58]}  c5 {[%clk 0:02:34]} 5. c3 {[%clk 0:02:58]}  Nc6 {[%clk 0:02:34]} 6. Nbd2 {[%clk 0:02:58]}  Bd6 {[%clk 0:02:33]} 7. O-O {[%clk 0:02:55]}  O-O {[%clk 0:02:33]} 8. dxc5 {[%clk 0:02:54]}  Bxc5 {[%clk 0:02:33]} 9. e4 {[%clk 0:02:55]}  dxe4 {[%clk 0:02:27]} 10. Nxe4 {[%clk 0:02:54]}  Be7 {[%clk 0:02:26]} 11. Qe2 {[%clk 0:02:53]}  Qc7 {[%clk 0:02:25]} 12. Bg5 {[%clk 0:02:50]}  Nxe4 {[%clk 0:02:18]} 13. Qxe4 {[%clk 0:02:50]}  f5 {[%clk 0:02:17]} 14. Qh4 {[%clk 0:02:49]}  Bxg5 {[%clk 0:02:14]} 15. Nxg5 {[%clk 0:02:47]}  h6 {[%clk 0:02:14]} 16. Nf3 {[%clk 0:02:46]}  Bd7 {[%clk 0:02:06]} 17. Rfe1 {[%clk 0:02:40]}  Rae8 {[%clk 0:02:06]} 18. Bc4 {[%clk 0:02:37]}  Nd8 {[%clk 0:02:05]} 19. Bb3 {[%clk 0:02:26]}  a5 {[%clk 0:01:55]} 20. Rad1 {[%clk 0:02:23]}  b5 {[%clk 0:01:49]} 21. Ne5 {[%clk 0:02:17]}  Bc8 {[%clk 0:01:45]} 22. a3 {[%clk 0:01:52]}  Nc6 {[%clk 0:01:33]} 23. Ng6 {[%clk 0:01:20]}  Rf6 {[%clk 0:01:31]} 24. Nf4 {[%clk 0:01:19]}  g5 {[%clk 0:01:26]} 25. Nd5 {[%clk 0:01:09]}  gxh4 {[%clk 0:01:20]} 26. Nxc7 {[%clk 0:01:06]}  Re7 {[%clk 0:01:17]} 27. Nxb5 {[%clk 0:01:04]}  Kg7 {[%clk 0:01:06]} 28. Rd6 {[%clk 0:00:56]}  Bd7 {[%clk 0:00:57]} 29. Red1 {[%clk 0:00:51]}  Be8 {[%clk 0:00:54]} 30. Nd4 {[%clk 0:00:46]}  Nxd4 {[%clk 0:00:54]} 31. cxd4 {[%clk 0:00:31]}  e5 {[%clk 0:00:53]} 32. dxe5 {[%clk 0:00:21]}  Rxe5 {[%clk 0:00:51]} 33. Rxf6 {[%clk 0:00:19]}  Kxf6 {[%clk 0:00:51]} 34. Bc4 {[%clk 0:00:19]}  a4 {[%clk 0:00:48]} 35. f3 {[%clk 0:00:18]}  Rc5 {[%clk 0:00:48]} 36. Rd4 {[%clk 0:00:17]}  Kg5 {[%clk 0:00:36]} 37. f4+ {[%clk 0:00:16]}  Kf6 {[%clk 0:00:35]} 38. Kf2 {[%clk 0:00:17]}  Bc6 {[%clk 0:00:29]} 39. g3 {[%clk 0:00:16]}  hxg3+ {[%clk 0:00:29]} 40. Kxg3 {[%clk 0:00:15]}  Be4 {[%clk 0:00:25]} 41. Kh4 {[%clk 0:00:14]}  Rc6 {[%clk 0:00:23]} 42. h3 {[%clk 0:00:14]}  Rb6 {[%clk 0:00:22]} 43. Bd3 {[%clk 0:00:07]}  Bxd3 {[%clk 0:00:20]} 44. Rxd3 {[%clk 0:00:08]}  Rxb2 {[%clk 0:00:21]} 45. Rd6+ {[%clk 0:00:08]}  Kg7 {[%clk 0:00:19]} 46. Rd4 {[%clk 0:00:08]}  Rb3 {[%clk 0:00:18]} 47. Rxa4 {[%clk 0:00:08]}  Kg6 {[%clk 0:00:18]} 48. Ra6+ {[%clk 0:00:08]}  Kg7 {[%clk 0:00:19]} 49. a4 {[%clk 0:00:08]}  Ra3 {[%clk 0:00:19]} 50. Ra5 {[%clk 0:00:08]}  Kg6 {[%clk 0:00:19]} 51. Ra7 {[%clk 0:00:08]}  Rf3 {[%clk 0:00:18]} 52. Ra6+ {[%clk 0:00:08]}  Kg7 {[%clk 0:00:18]} 53. Ra7+ {[%clk 0:00:08]}  Kg6 {[%clk 0:00:18]} 54. Ra6+ {[%clk 0:00:08]}  Kg7 {[%clk 0:00:18]} 55. a5 {[%clk 0:00:09]}  Rxf4+ {[%clk 0:00:19]} 56. Kh5 {[%clk 0:00:10]}  Rf3 {[%clk 0:00:19]} 57. Ra7+ {[%clk 0:00:08]}  Kf6 {[%clk 0:00:19]} 58. h4 {[%clk 0:00:08]}  f4 {[%clk 0:00:20]} 59. Rb7 {[%clk 0:00:08]}  Ra3 {[%clk 0:00:19]} 60. Rb6+ {[%clk 0:00:07]}  Kf5 {[%clk 0:00:20]} 61. Rxh6 {[%clk 0:00:07]}  f3 {[%clk 0:00:19]} 62. Rh8 {[%clk 0:00:06]}  Kf4 {[%clk 0:00:19]} 63. Rf8+ {[%clk 0:00:07]}  Kg3 {[%clk 0:00:19]} 64. Kg5 {[%clk 0:00:07]}  Rxa5+ {[%clk 0:00:19]} 65. Kg6 {[%clk 0:00:07]}  Ra6+ {[%clk 0:00:18]} 66. Kg5 {[%clk 0:00:08]}  Ra5+ {[%clk 0:00:19]} 67. Kg6 {[%clk 0:00:08]}  Ra4 {[%clk 0:00:18]} 68. h5 {[%clk 0:00:09]}  Rg4+ {[%clk 0:00:18]} 69. Kh7 {[%clk 0:00:09]}  Rf4 {[%clk 0:00:19]} 70. Rxf4 {[%clk 0:00:06]}  Kxf4 {[%clk 0:00:20]} 71. Kg7 {[%clk 0:00:06]}  f2 {[%clk 0:00:20]} 72. h6 {[%clk 0:00:07]}  f1=Q {[%clk 0:00:21]} 73. h7 {[%clk 0:00:08]}  Qg2+ {[%clk 0:00:21]} 74. Kh8 {[%clk 0:00:08]}  Qe4 {[%clk 0:00:20]} 75. Kg7 {[%clk 0:00:08]}  Qe5+ {[%clk 0:00:21]} 76. Kg8 {[%clk 0:00:08]}  Qe6+ {[%clk 0:00:21]} 77. Kg7 {[%clk 0:00:09]}  Qe7+ {[%clk 0:00:22]} 78. Kg8 {[%clk 0:00:09]}  Kg5 {[%clk 0:00:22]} 79. h8=Q {[%clk 0:00:00]}  Kg6 {[%clk 0:00:22]} 0-1


[Site "https://www.chess.com"]

[Event "Titled Tuesday Blitz November 07 Early 2023"]
[White "Shubenkova, Veronika"]
[Black "elprimo2012mortis"]
[WhiteFideId "44124040"]
[WhiteElo "2528"]
[BlackElo "2797"]
[Result "1/2-1/2"]
[Round "3"]
[TimeControl "180+1"]
[Date "2023.11.07"]
[WhiteClock "0:00:55"]
[BlackClock "0:00:28"]
[Board "66"]

1. e4 {[%clk 0:03:00]}  c6 {[%clk 0:02:59]} 2. d4 {[%clk 0:03:01]}  d5 {[%clk 0:03:00]} 3. Nc3 {[%clk 0:03:02]}  dxe4 {[%clk 0:03:00]} 4. Nxe4 {[%clk 0:03:02]}  Nf6 {[%clk 0:03:00]} 5. Nxf6+ {[%clk 0:03:03]}  exf6 {[%clk 0:03:01]} 6. c3 {[%clk 0:03:03]}  Bd6 {[%clk 0:03:00]} 7. Bd3 {[%clk 0:03:04]}  O-O {[%clk 0:03:00]} 8. Ne2 {[%clk 0:03:05]}  Re8 {[%clk 0:03:00]} 9. Qc2 {[%clk 0:03:05]}  h5 {[%clk 0:03:01]} 10. Bd2 {[%clk 0:03:06]}  c5 {[%clk 0:02:59]} 11. dxc5 {[%clk 0:03:04]}  Bxc5 {[%clk 0:02:58]} 12. f3 {[%clk 0:03:03]}  Nc6 {[%clk 0:02:49]} 13. O-O-O {[%clk 0:03:03]}  Ne5 {[%clk 0:02:31]} 14. Bb5 {[%clk 0:02:50]}  Bd7 {[%clk 0:02:02]} 15. Bxd7 {[%clk 0:02:50]}  Qxd7 {[%clk 0:01:59]} 16. Bf4 {[%clk 0:02:24]}  Qe6 {[%clk 0:01:56]} 17. Kb1 {[%clk 0:02:20]}  Ng6 {[%clk 0:01:46]} 18. Nd4 {[%clk 0:02:11]}  Bxd4 {[%clk 0:01:29]} 19. Rxd4 {[%clk 0:02:10]}  Rad8 {[%clk 0:01:29]} 20. Rxd8 {[%clk 0:02:07]}  Rxd8 {[%clk 0:01:30]} 21. Bg3 {[%clk 0:02:00]}  h4 {[%clk 0:01:28]} 22. Bf2 {[%clk 0:01:58]}  h3 {[%clk 0:01:27]} 23. gxh3 {[%clk 0:01:54]}  Qxh3 {[%clk 0:01:27]} 24. Rd1 {[%clk 0:01:50]}  Rxd1+ {[%clk 0:01:23]} 25. Qxd1 {[%clk 0:01:50]}  a6 {[%clk 0:01:07]} 26. Bg3 {[%clk 0:01:50]}  Qg2 {[%clk 0:01:05]} 27. Qd5 {[%clk 0:01:31]}  Qf1+ {[%clk 0:00:56]} 28. Kc2 {[%clk 0:01:30]}  Qe2+ {[%clk 0:00:56]} 29. Kc1 {[%clk 0:01:30]}  b5 {[%clk 0:00:52]} 30. Qa8+ {[%clk 0:01:27]}  Kh7 {[%clk 0:00:51]} 31. Qxa6 {[%clk 0:01:27]}  f5 {[%clk 0:00:45]} 32. Qc8 {[%clk 0:01:22]}  Qxf3 {[%clk 0:00:42]} 33. Bd6 {[%clk 0:01:00]}  f4 {[%clk 0:00:38]} 34. Qf5 {[%clk 0:00:56]}  Qe2 {[%clk 0:00:30]} 35. Qh3+ {[%clk 0:00:55]}  Kg8 {[%clk 0:00:27]} 36. Qc8+ {[%clk 0:00:55]}  Kh7 {[%clk 0:00:28]} 37. Qh3+ {[%clk 0:00:55]}  Kg8 {[%clk 0:00:28]} 38. Qc8+ {[%clk 0:00:55]}  Kh7 {[%clk 0:00:28]} 39. Qh3+ {[%clk 0:00:55]} 1/2-1/2


[Site "https://www.chess.com"]

[Event "Titled Tuesday Blitz November 07 Early 2023"]
[White "Kochiev, Ivan"]
[Black "Gharibyan, Mamikon"]
[WhiteFideId "2917890"]
[BlackFideId "13308300"]
[WhiteElo "2525"]
[BlackElo "2761"]
[Result "0-1"]
[Round "3"]
[TimeControl "180+1"]
[Date "2023.11.07"]
[WhiteClock "0:00:02"]
[BlackClock "0:00:14"]
[Board "67"]

1. e4 {[%clk 0:03:00]}  e5 {[%clk 0:02:52]} 2. Nf3 {[%clk 0:03:01]}  Nc6 {[%clk 0:02:46]} 3. Bc4 {[%clk 0:03:00]}  Bc5 {[%clk 0:02:44]} 4. c3 {[%clk 0:03:00]}  Nf6 {[%clk 0:02:45]} 5. d3 {[%clk 0:03:00]}  d6 {[%clk 0:02:45]} 6. O-O {[%clk 0:03:01]}  a5 {[%clk 0:02:46]} 7. Nbd2 {[%clk 0:03:01]}  Ba7 {[%clk 0:02:46]} 8. Bb3 {[%clk 0:02:59]}  O-O {[%clk 0:02:42]} 9. h3 {[%clk 0:02:58]}  Ne7 {[%clk 0:02:33]} 10. d4 {[%clk 0:02:55]}  Nc6 {[%clk 0:02:32]} 11. dxe5 {[%clk 0:02:39]}  Nxe5 {[%clk 0:02:16]} 12. Bc2 {[%clk 0:02:19]}  Ng6 {[%clk 0:02:10]} 13. Re1 {[%clk 0:02:17]}  Re8 {[%clk 0:02:10]} 14. Nf1 {[%clk 0:02:16]}  d5 {[%clk 0:02:01]} 15. Ng3 {[%clk 0:01:39]}  dxe4 {[%clk 0:01:54]} 16. Qxd8 {[%clk 0:01:39]}  Rxd8 {[%clk 0:01:55]} 17. Nxe4 {[%clk 0:01:39]}  Nd5 {[%clk 0:01:45]} 18. Bd2 {[%clk 0:01:26]}  Ndf4 {[%clk 0:01:31]} 19. Be3 {[%clk 0:01:14]}  Bxe3 {[%clk 0:01:28]} 20. Rxe3 {[%clk 0:01:13]}  h6 {[%clk 0:01:24]} 21. Nd4 {[%clk 0:00:50]}  a4 {[%clk 0:01:21]} 22. Rae1 {[%clk 0:00:36]}  a3 {[%clk 0:01:14]} 23. b3 {[%clk 0:00:35]}  Ra5 {[%clk 0:01:06]} 24. b4 {[%clk 0:00:29]}  Re5 {[%clk 0:01:03]} 25. Ng3 {[%clk 0:00:16]}  Rxe3 {[%clk 0:01:01]} 26. Rxe3 {[%clk 0:00:17]}  Nd5 {[%clk 0:01:01]} 27. Rd3 {[%clk 0:00:10]}  Ngf4 {[%clk 0:00:55]} 28. Rf3 {[%clk 0:00:10]}  g5 {[%clk 0:00:49]} 29. Nb5 {[%clk 0:00:11]}  c6 {[%clk 0:00:43]} 30. Nxa3 {[%clk 0:00:11]}  g4 {[%clk 0:00:43]} 31. hxg4 {[%clk 0:00:11]}  Bxg4 {[%clk 0:00:44]} 32. Rxf4 {[%clk 0:00:09]}  Nxf4 {[%clk 0:00:44]} 33. Nc4 {[%clk 0:00:10]}  Be6 {[%clk 0:00:43]} 34. Na5 {[%clk 0:00:08]}  Bxa2 {[%clk 0:00:40]} 35. Nxb7 {[%clk 0:00:08]}  Rd2 {[%clk 0:00:41]} 36. Be4 {[%clk 0:00:08]}  Bd5 {[%clk 0:00:22]} 37. Na5 {[%clk 0:00:07]}  h5 {[%clk 0:00:18]} 38. Nxc6 {[%clk 0:00:06]}  h4 {[%clk 0:00:18]} 39. Nf1 {[%clk 0:00:06]}  Rd1 {[%clk 0:00:14]} 40. Bxd5 {[%clk 0:00:06]}  Nxd5 {[%clk 0:00:15]} 41. Nd4 {[%clk 0:00:05]}  Nxc3 {[%clk 0:00:15]} 42. g3 {[%clk 0:00:02]}  Rxd4 {[%clk 0:00:14]} 0-1


[Site "https://www.chess.com"]

[Event "Titled Tuesday Blitz November 07 Early 2023"]
[White "Ben Artzi, Ido"]
[Black "Le, Tuan Minh"]
[WhiteFideId "2810913"]
[BlackFideId "12401153"]
[WhiteElo "2525"]
[BlackElo "3070"]
[Result "0-1"]
[Round "3"]
[TimeControl "180+1"]
[Date "2023.11.07"]
[WhiteClock "0:00:03"]
[BlackClock "0:00:53"]
[Board "70"]

1. d4 {[%clk 0:03:00]}  d5 {[%clk 0:02:57]} 2. c4 {[%clk 0:03:01]}  c6 {[%clk 0:02:57]} 3. cxd5 {[%clk 0:03:01]}  cxd5 {[%clk 0:02:57]} 4. Bf4 {[%clk 0:03:02]}  Nf6 {[%clk 0:02:57]} 5. Nc3 {[%clk 0:03:02]}  Nc6 {[%clk 0:02:56]} 6. e3 {[%clk 0:03:03]}  a6 {[%clk 0:02:57]} 7. Be2 {[%clk 0:02:59]}  Bf5 {[%clk 0:02:57]} 8. Rc1 {[%clk 0:02:54]}  e6 {[%clk 0:02:54]} 9. Qb3 {[%clk 0:02:54]}  Ra7 {[%clk 0:02:54]} 10. Nf3 {[%clk 0:02:51]}  Bd6 {[%clk 0:02:55]} 11. Ne5 {[%clk 0:02:21]}  Bxe5 {[%clk 0:02:42]} 12. Bxe5 {[%clk 0:02:09]}  O-O {[%clk 0:02:31]} 13. Bg3 {[%clk 0:01:55]}  b5 {[%clk 0:02:21]} 14. O-O {[%clk 0:01:43]}  Qd7 {[%clk 0:01:46]} 15. a4 {[%clk 0:01:39]}  b4 {[%clk 0:01:25]} 16. Na2 {[%clk 0:01:36]}  Ne4 {[%clk 0:01:25]} 17. Nxb4 {[%clk 0:01:25]}  Rb7 {[%clk 0:00:59]} 18. Bb5 {[%clk 0:00:47]}  Na5 {[%clk 0:00:59]} 19. Bxd7 {[%clk 0:00:26]}  Nxb3 {[%clk 0:00:57]} 20. Rc8 {[%clk 0:00:07]}  Rxc8 {[%clk 0:00:52]} 21. Bxc8 {[%clk 0:00:07]}  Rxb4 {[%clk 0:00:52]} 22. Bxa6 {[%clk 0:00:06]}  Rxa4 {[%clk 0:00:53]} 23. Be5 {[%clk 0:00:03]}  Rxa6 {[%clk 0:00:53]} 0-1


[Site "https://www.chess.com"]